bitfinex/quotes_SOLUSD_20250918
["timestamp","ask_amount","ask_price","bid_price","bid_amount"]
[1758156588668,6.70291552,245.38,245.35,0.69000001]
[1758156589092,6.70291552,245.38,245.35,1e-08]
[1758156589493,4.07543313,245.38,245.35,1e-08]
[1758156589674,2.62748239,245.37,245.35,1e-08]
[1758156590090,5.70705223,245.4,245.36,0.69]
[1758156590302,4.07509857,245.4,245.37,0.69]
[1758156590590,6.70258096,245.4,245.36,0.69]
[1758156591990,2.62748239,245.38,245.35,1e-08]
[1758156592197,0.7,245.39,245.35,1e-08]
[1758156592375,2.62748239,245.38,245.35,1e-08]
[1758156592573,2.62748239,245.38,245.35,0.69000001]
[1758156593598,6.70289918,245.38,245.35,0.69000001]
[1758156594304,4.07541679,245.38,245.36,0.69]
[1758156594690,4.07541679,245.38,245.37,0.69]
[1758156595083,4.07541679,245.38,245.35,0.69000001]
[1758156595286,0.06,245.4,245.36,3.31748239]
[1758156595587,0.06,245.4,245.37,0.69]
[1758156596299,0.06,245.4,245.38,0.69]
[1758156596680,0.06,245.4,245.39,0.69]
[1758156597189,0.06,245.4,245.37,0.69]
[1758156598097,0.06,245.4,245.38,0.69]
[1758156598496,0.06,245.4,245.39,0.72]
[1758156600194,0.06,245.4,245.36,0.72]
[1758156600404,0.06,245.4,245.37,0.72]
[1758156600803,0.06,245.4,245.35,1e-08]
[1758156600804,7.44248735,245.4,245.35,1e-08]
[1758156601095,0.68,245.39,245.35,1e-08]
[1758156601304,2.62748239,245.38,245.35,1e-08]
[1758156601476,2.62748239,245.37,245.35,1e-08]
[1758156601675,2.62748239,245.38,245.35,1e-08]
[1758156602086,2.62748239,245.39,245.36,0.72]
[1758156602289,4.13500496,245.4,245.35,1e-08]
[1758156602498,2.62748239,245.39,245.36,0.72]
[1758156602901,2.62748239,245.39,245.35,1e-08]
[1758156603084,2.62748239,245.39,245.35,0.70000001]
[1758156603278,2.62748239,245.39,245.36,0.7]
[1758156604390,2.62748239,245.39,245.35,1e-08]
[1758156604695,4.13500496,245.4,245.36,0.7]
[1758156604898,2.62748239,245.39,245.35,1e-08]
[1758156605101,4.13500496,245.4,245.36,0.7]
[1758156605286,2.62748239,245.39,245.36,0.7]
[1758156605792,2.62748239,245.39,245.35,1e-08]
[1758156606189,2.62748239,245.39,245.35,0.70000001]
[1758156606699,2.62748239,245.39,245.35,1e-08]
[1758156606902,7.35267415,245.39,245.35,1e-08]
[1758156607088,4.72519176,245.39,245.35,1e-08]
[1758156607289,7.35267415,245.39,245.35,1e-08]
[1758156608686,4.72519176,245.39,245.35,1e-08]
[1758156608912,4.07519176,245.39,245.35,0.70000001]
[1758156609684,4.72519176,245.39,245.35,0.70000001]
[1758156609982,4.78519176,245.39,245.35,0.70000001]
[1758156610184,4.13519176,245.39,245.35,0.70000001]
[1758156610685,4.78519176,245.39,245.35,1e-08]
[1758156611602,0.65,245.38,245.35,1e-08]
[1758156612006,0.65,245.37,245.35,1e-08]
[1758156612189,13.59559401,245.36,245.35,1e-08]
[1758156612390,26.93432314,245.36,245.35,1e-08]
[1758156612590,6.76267415,245.39,245.35,1e-08]
[1758156612804,26.06,245.39,245.35,0.70000001]
[1758156612997,0.06,245.39,245.35,0.70000001]
[1758156613506,4.13518253,245.39,245.35,0.70000001]
[1758156613694,4.78518253,245.39,245.35,0.70000001]
[1758156613891,4.78518253,245.39,245.36,0.7]
[1758156613892,0.06,245.39,245.36,0.7]
[1758156614102,0.06,245.39,245.37,0.7]
[1758156614490,0.06,245.39,245.38,0.7]
[1758156615189,0.71,245.39,245.35,1e-08]
[1758156615383,0.06,245.39,245.35,1e-08]
[1758156615807,0.06,245.39,245.35,0.70000001]
[1758156616316,0.06,245.39,245.36,0.7]
[1758156617719,6.76270998,245.39,245.35,1e-08]
[1758156617894,7.41270998,245.39,245.35,1e-08]
[1758156618095,4.13522759,245.39,245.36,0.7]
[1758156618687,0.06,245.39,245.36,0.7]
[1758156619598,0.06,245.39,245.35,1e-08]
[1758156619803,0.06,245.39,245.37,0.7]
[1758156620498,0.06,245.39,245.36,0.7]
[1758156620914,4.13521454,245.39,245.35,1e-08]
[1758156621097,4.13521454,245.39,245.35,0.70000001]
[1758156622996,0.06,245.39,245.35,1e-08]
[1758156623506,1.68411316,245.36,245.35,1e-08]
[1758156623894,2.33411316,245.36,245.35,1e-08]
[1758156624508,0.65,245.36,245.35,1e-08]
[1758156624709,2.33411316,245.36,245.35,1e-08]
[1758156625208,6.40975711,245.36,245.35,1e-08]
[1758156625404,26.06,245.39,245.35,1e-08]
[1758156625611,2.74432568,245.38,245.35,1e-08]
[1758156627615,2.33411316,245.37,245.35,1e-08]
[1758156627920,1.68411316,245.36,245.35,1e-08]
[1758156628103,0.65,245.36,245.35,1e-08]
[1758156628305,2.7443267,245.37,245.35,1e-08]
[1758156628502,2.33411316,245.36,245.35,1e-08]
[1758156628701,2.7443267,245.37,245.35,1e-08]
[1758156628906,5.75975711,245.36,245.35,1e-08]
[1758156629204,4.07564395,245.36,245.35,1e-08]
[1758156629604,5.75975711,245.36,245.35,1e-08]
[1758156629809,0.65,245.37,245.35,1e-08]
[1758156630010,4.72549574,245.37,245.35,1e-08]
[1758156630208,1.68411316,245.36,245.35,1e-08]
[1758156630418,2.74421639,245.38,245.35,1e-08]
[1758156630918,2.74421639,245.38,245.36,0.7]
[1758156631300,2.74421639,245.38,245.37,0.7]
[1758156631893,2.74421639,245.38,245.35,1.68411317]
[1758156632097,2.74421639,245.38,245.36,0.7]
[1758156633309,0.06,245.39,245.36,0.7]
[1758156633510,2.74532401,245.38,245.36,0.7]
[1758156633714,0.06,245.39,245.36,0.7]
[1758156633916,2.74532401,245.38,245.36,0.7]
[1758156634220,0.06,245.39,245.36,0.7]
[1758156634421,2.7456003,245.38,245.36,0.7]
[1758156634608,0.06,245.39,245.36,0.7]
[1758156634909,2.7456003,245.38,245.36,0.7]
[1758156635093,0.06,245.39,245.36,0.7]
[1758156635299,2.74565497,245.38,245.36,0.7]
[1758156635608,0.06,245.39,245.36,0.7]
[1758156636018,2.8054605,245.39,245.36,0.7]
[1758156636210,2.8054605,245.39,245.35,1e-08]
[1758156636211,0.06,245.39,245.38,1.68411316]
[1758156636417,0.06,245.39,245.38,2.38411316]
[1758156637313,0.06,245.39,245.38,6.45942492]
[1758156641611,0.06,245.39,245.38,2.38411316]
[1758156641810,0.06,245.39,245.38,0.7]
[1758156642010,6.52927115,245.39,245.35,1e-08]
[1758156642226,27.68411316,245.36,245.35,1e-08]
[1758156642433,30.42986528,245.36,245.35,1e-08]
[1758156642727,31.42418842,245.36,245.35,1e-08]
[1758156643031,13.87991715,245.35,245.3,0.03]
[1758156643212,1.9684363,245.33,245.3,0.03]
[1758156643417,4.71418842,245.33,245.3,0.03]
[1758156643616,35.50033075,245.33,245.3,0.03]
[1758156645828,25.3483853,245.33,245.3,0.03]
[1758156646024,21.4118116,245.33,245.3,0.03]
[1758156646215,23.09592476,245.33,245.3,0.03]
[1758156647527,24.7285445,245.33,245.3,0.03]
[1758156657537,8.73883733,245.33,245.3,0.73]
[1758156657716,37.26876207,245.33,245.3,0.73]
[1758156658837,5.70876207,245.33,245.3,0.73]
[1758156661039,7.67719837,245.33,245.3,0.03]
[1758156661427,31.99308521,245.33,245.3,0.03]
[1758156662826,31.99308521,245.33,245.3,0.73]
[1758156663839,0.06,245.34,245.32,0.73]
[1758156665735,0.06,245.34,245.33,0.7]
[1758156667526,4.13602185,245.34,245.32,0.03]
[1758156667948,4.13602185,245.34,245.32,0.73]
[1758156668238,4.13602185,245.34,245.33,0.7]
[1758156669733,4.13602185,245.34,245.32,0.03]
[1758156669933,2.40411316,245.33,245.32,0.03]
[1758156670234,2.6884363,245.33,245.32,0.03]
[1758156670429,7.05608697,245.33,245.32,0.03]
[1758156670635,4.32085616,245.33,245.32,0.03]
[1758156671131,33.05608697,245.33,245.32,0.03]
[1758156672448,7.05608697,245.33,245.32,0.03]
[1758156674153,6.33608697,245.33,245.32,0.03]
[1758156674850,7.05608697,245.33,245.32,0.03]
[1758156677250,2.73523081,245.33,245.32,0.73]
[1758156677761,30.41934397,245.33,245.32,0.03]
[1758156680456,28.73523081,245.33,245.32,0.03]
[1758156680658,32.0516306,245.33,245.32,0.03]
[1758156681556,32.0516306,245.33,245.32,0.73]
[1758156681743,33.00113482,245.33,245.32,0.03]
[1758156683257,34.00545796,245.33,245.32,0.03]
[1758156683559,79.16105197,245.33,245.32,0.03]
[1758156684650,82.57827581,245.33,245.32,0.03]
[1758156685048,2.91794052,245.31,245.3,0.03]
[1758156685251,63.21317133,245.31,245.3,0.03]
[1758156685452,63.93317133,245.31,245.3,0.03]
[1758156686154,67.36002714,245.31,245.3,0.03]
[1758156687662,69.61163813,245.31,245.3,0.03]
[1758156688165,67.81740206,245.31,245.3,0.03]
[1758156689250,67.09740206,245.31,245.3,0.03]
[1758156689643,64.46378468,245.31,245.3,0.03]
[1758156689843,67.09740206,245.31,245.3,0.03]
[1758156690044,67.81740206,245.31,245.3,0.03]
[1758156690746,81.41299607,245.31,245.3,0.03]
[1758156691138,81.41299607,245.31,245.29,1e-08]
[1758156691346,27.18988842,245.3,245.29,1e-08]
[1758156692650,10.52500017,245.3,245.29,1e-08]
[1758156692849,2.73523081,245.3,245.29,0.69000001]
[1758156694743,5.65317133,245.3,245.29,1e-08]
[1758156695163,51.51876534,245.3,245.29,1e-08]
[1758156695641,54.94757072,245.3,245.29,1e-08]
[1758156696066,19.95876534,245.3,245.29,1e-08]
[1758156696269,51.51876534,245.3,245.29,1e-08]
[1758156696844,51.57876534,245.3,245.29,1e-08]
[1758156697566,55.00757072,245.3,245.29,1e-08]
[1758156698264,50.86876534,245.3,245.29,1e-08]
[1758156701170,51.57876534,245.3,245.29,1e-08]
[1758156702049,53.21158501,245.3,245.29,1e-08]
[1758156702255,58.88977136,245.3,245.29,1e-08]
[1758156702861,55.93039039,245.3,245.29,1e-08]
[1758156703050,52.50158501,245.3,245.29,1e-08]
[1758156706275,49.7663542,245.3,245.29,1e-08]
[1758156706497,52.50709884,245.3,245.29,1e-08]
[1758156707358,53.21709884,245.3,245.29,1e-08]
[1758156707679,53.21709884,245.3,245.26,1e-08]
[1758156707680,26.28432314,245.27,245.26,1e-08]
[1758156707860,63.21868516,245.27,245.26,1e-08]
[1758156708061,66.1775167,245.27,245.26,1e-08]
[1758156708566,70.25465617,245.27,245.26,1e-08]
[1758156709079,75.21496673,245.27,245.26,1e-08]
[1758156709661,85.48340319,245.27,245.26,1e-08]
[1758156711585,85.482276,245.27,245.26,1e-08]
[1758156712174,88.81332882,245.27,245.26,1e-08]
[1758156717876,39.87991715,245.23,245.21,0.03]
[1758156718076,37.21868516,245.22,245.21,0.03]
[1758156718281,37.93868516,245.22,245.21,0.03]
[1758156718484,40.57230254,245.22,245.21,0.03]
[1758156718685,39.85230254,245.22,245.21,0.03]
[1758156719594,40.57230254,245.22,245.21,0.03]
[1758156719988,44.65027334,245.22,245.21,0.03]
[1758156720286,58.24586735,245.22,245.21,0.03]
[1758156720679,58.24364091,245.22,245.21,0.03]
[1758156721782,57.52364091,245.22,245.21,0.03]
[1758156722489,60.94678866,245.22,245.21,0.03]
[1758156723099,63.19212601,245.22,245.21,0.03]
[1758156723293,59.76897826,245.22,245.21,0.03]
[1758156723490,63.19083349,245.22,245.21,0.03]
[1758156724581,63.88083349,245.22,245.21,0.03]
[1758156725202,61.63549614,245.22,245.21,0.03]
[1758156725385,63.87927484,245.22,245.21,0.03]
[1758156725799,61.63479745,245.22,245.21,0.03]
[1758156726006,63.87927262,245.22,245.21,0.03]
[1758156726203,63.87927262,245.22,245.17,0.72]
[1758156726204,13.59559401,245.18,245.17,0.72]
[1758156726382,50.81205273,245.18,245.17,0.72]
[1758156726910,50.81205273,245.18,245.05,2.63361738]
[1758156726911,0.28432314,245.14,245.05,2.63361738]
[1758156727089,2.63361738,245.11,245.04,2.63361738]
[1758156727703,2.63361738,245.12,245.05,2.63361738]
[1758156728005,4.0798009,245.11,245.05,2.63361738]
[1758156728302,4.0798009,245.11,245.06,2.63361738]
[1758156728695,6.71341828,245.11,245.07,0.72]
[1758156729405,2.63361738,245.1,245.07,0.72]
[1758156729616,2.63361738,245.09,245.07,0.72]
[1758156729791,4.08030031,245.08,245.07,0.72]
[1758156730191,2.63361738,245.09,245.07,0.72]
[1758156731309,6.71358474,245.1,245.07,0.72]
[1758156731489,6.71358474,245.1,245.08,0.72]
[1758156731689,10.79518627,245.1,245.09,0.72]
[1758156733301,26.0,245.1,245.09,0.72]
[1758156734905,30.07996736,245.1,245.09,0.72]
[1758156735806,32.71358474,245.1,245.09,0.72]
[1758156736106,30.07996736,245.1,245.09,0.72]
[1758156736312,30.07996736,245.1,245.07,0.75]
[1758156736502,30.07996736,245.1,245.08,0.72]
[1758156736897,32.71358474,245.1,245.08,0.72]
[1758156737214,32.74358474,245.1,245.08,0.72]
[1758156737401,35.37720212,245.1,245.08,0.72]
[1758156739005,35.37720212,245.1,245.07,0.03]
[1758156739315,35.37720212,245.1,245.07,0.75]
[1758156739527,2.63361738,245.09,245.07,0.03]
[1758156739729,2.63361738,245.08,245.07,0.03]
[1758156740797,64.30358474,245.1,245.07,0.75]
[1758156741000,66.93720212,245.1,245.07,0.75]
[1758156741195,2.66361738,245.1,245.08,0.72]
[1758156741499,57.56,245.14,245.09,2.63361738]
[1758156741694,57.56,245.14,245.1,0.72]
[1758156741900,57.56,245.14,245.11,0.72]
[1758156742220,6.71310322,245.13,245.11,0.72]
[1758156742999,26.0,245.13,245.12,0.72]
[1758156743995,26.0,245.13,245.08,1.68772359]
[1758156744198,26.0,245.13,245.09,0.72]
[1758156744424,4.07963446,245.12,245.1,0.72]
[1758156745014,33.45489374,245.14,245.1,0.72]
[1758156745208,33.45489374,245.14,245.11,0.72]
[1758156745405,33.45489374,245.14,245.07,0.03]
[1758156745406,26.0,245.13,245.12,0.72]
[1758156745603,26.0,245.13,245.1,1.68772359]
[1758156746210,26.0,245.13,245.11,0.72]
[1758156746406,26.0,245.13,245.12,0.72]
[1758156746826,26.0,245.14,245.12,0.72]
[1758156747424,26.0,245.14,245.12,2.40772359]
[1758156748109,26.0,245.14,245.1,1.68772359]
[1758156748421,26.0,245.14,245.07,0.03]
[1758156748422,4.07963446,245.12,245.09,1.68772359]
[1758156749112,4.07963446,245.12,245.1,0.72]
[1758156749508,4.07963446,245.12,245.09,1.68772359]
[1758156749914,4.07963446,245.12,245.09,2.40772359]
[1758156751544,4.07963446,245.12,245.1,1.68772359]
[1758156753323,6.81858775,245.12,245.1,1.68772359]
[1758156753527,4.76963446,245.12,245.08,0.03]
[1758156753827,7.50858775,245.12,245.09,1.68772359]
[1758156754228,6.81858775,245.12,245.08,0.03]
[1758156754436,7.50858775,245.12,245.09,1.68772359]
[1758156754639,6.81858775,245.12,245.09,1.68772359]
[1758156754813,2.73895329,245.11,245.09,1.68772359]
[1758156756316,1.68772359,245.1,245.09,1.68772359]
[1758156756627,1.68772359,245.1,245.08,0.03]
[1758156758031,1.68772359,245.1,245.08,0.74]
[1758156758234,4.42667688,245.1,245.08,0.74]
[1758156758438,4.42667688,245.1,245.08,0.03]
[1758156758737,2.73895329,245.1,245.08,0.03]
[1758156758938,1.6336199,245.09,245.08,0.03]
[1758156760313,4.37970754,245.09,245.08,0.03]
[1758156760516,1.6336199,245.09,245.08,0.03]
[1758156760716,4.37970754,245.09,245.08,0.03]
[1758156760930,1.6336199,245.09,245.08,0.03]
[1758156761524,1.6336199,245.09,245.08,0.74]
[1758156761724,2.74694066,245.12,245.08,2.42772359]
[1758156761922,2.74694066,245.11,245.09,2.39772359]
[1758156762127,2.74694066,245.1,245.09,2.39772359]
[1758156763016,2.74694066,245.11,245.09,2.39772359]
[1758156763222,2.74694066,245.1,245.09,2.39772359]
[1758156763538,5.14466425,245.13,245.09,2.39772359]
[1758156763736,4.07933444,245.14,245.09,2.39772359]
[1758156763737,2.74694066,245.12,245.09,2.39772359]
[1758156763938,2.74694066,245.11,245.09,2.39772359]
[1758156764142,5.76705803,245.14,245.09,0.71]
[1758156764344,3.43865322,245.13,245.08,1.71772359]
[1758156764642,7.54901186,245.12,245.08,1.71772359]
[1758156764827,2.74865322,245.11,245.08,1.71772359]
[1758156765029,2.74865322,245.1,245.08,1.71772359]
[1758156765231,4.11035864,245.12,245.08,2.42772359]
[1758156765441,2.74872281,245.11,245.08,0.03]
[1758156765740,2.74872281,245.1,245.08,0.03]
[1758156765916,0.69,245.1,245.08,0.03]
[1758156766435,0.69,245.12,245.08,0.03]
[1758156766628,4.43701807,245.11,245.08,0.03]
[1758156766830,2.74929448,245.1,245.08,0.03]
[1758156767032,2.37772359,245.11,245.08,0.03]
[1758156767338,3.4392947,245.1,245.08,0.03]
[1758156767538,2.74986192,245.09,245.08,0.03]
[1758156770135,3.43986192,245.09,245.08,0.03]
[1758156770516,5.12758551,245.09,245.08,0.03]
[1758156770739,4.08030031,245.08,245.07,0.03]
[1758156771039,6.83016223,245.08,245.07,0.03]
[1758156771336,7.52016223,245.08,245.07,0.03]
[1758156771520,4.38381548,245.08,245.07,0.03]
[1758156771722,6.76153907,245.08,245.07,0.03]
[1758156771923,4.38381548,245.08,245.07,0.74]
[1758156772234,4.38381548,245.08,245.07,0.03]
[1758156772539,4.38381548,245.08,245.07,1.71772359]
[1758156773053,2.74986192,245.08,245.07,0.03]
[1758156773356,2.74986192,245.08,245.07,1.71772359]
[1758156773645,0.69,245.13,245.07,2.42772359]
[1758156773848,7.85961543,245.12,245.07,2.42772359]
[1758156774041,3.44016935,245.11,245.07,2.42772359]
[1758156774227,2.75016935,245.1,245.07,2.42772359]
[1758156774430,2.75016935,245.09,245.07,0.74]
[1758156774744,0.69,245.11,245.07,2.42772359]
[1758156774934,2.7501326,245.1,245.07,1.71772359]
[1758156775246,2.7501326,245.09,245.07,0.03]
[1758156775439,0.69,245.11,245.07,1.71772359]
[1758156775641,2.75013144,245.1,245.07,5.79814351]
[1758156775841,2.75013144,245.09,245.07,5.79814351]
[1758156776040,0.69,245.11,245.07,5.79814351]
[1758156776241,2.75013144,245.1,245.07,5.79814351]
[1758156776457,5.10944608,245.12,245.08,0.71]
[1758156776749,0.06,245.17,245.11,1.68772359]
[1758156776936,0.06,245.17,245.15,1.68772359]
[1758156777134,0.06,245.17,245.16,1.68772359]
[1758156777531,0.06,245.17,245.16,6.47669242]
[1758156777938,0.06,245.17,245.16,0.71]
[1758156778137,0.06,245.17,245.16,2.39772359]
[1758156780649,0.06,245.17,245.16,33.93772359]
[1758156781831,0.06,245.17,245.16,0.71]
[1758156782036,0.06,245.17,245.08,10.20048338]
[1758156782037,0.73,245.17,245.15,31.54]
[1758156782251,0.06,245.17,245.15,31.52]
[1758156782936,0.06,245.17,245.15,33.91772359]
[1758156783143,0.06,245.17,245.16,1.68772359]
[1758156783343,0.06,245.17,245.16,2.39772359]
[1758156786629,0.06,245.17,245.16,9.14861795]
[1758156786840,0.06,245.17,245.16,23.0285351]
[1758156787038,0.06,245.17,245.16,14.58991715]
[1758156787336,0.06,245.17,245.16,24.66095496]
[1758156787536,0.06,245.17,245.16,23.0285351]
[1758156787849,0.06,245.17,245.16,14.58991715]
[1758156788033,0.06,245.17,245.16,58.51432314]
[1758156788231,0.06,245.17,245.16,66.95294109]
[1758156788451,0.06,245.17,245.16,28.39772359]
[1758156788659,0.06,245.17,245.16,59.20772359]
[1758156789730,0.06,245.17,245.16,66.66861795]
[1758156789932,0.06,245.17,245.16,59.91772359]
[1758156791155,0.06,245.17,245.16,66.66861795]
[1758156791456,0.06,245.17,245.16,58.23]
[1758156791658,0.06,245.17,245.16,66.66861795]
[1758156791846,0.06,245.17,245.16,66.95294109]
[1758156792468,1e-08,245.17,245.16,80.5485351]
[1758156792647,0.06,245.2,245.19,26.0]
[1758156792955,0.06,245.2,245.19,59.20772359]
[1758156793166,0.06,245.2,245.19,59.91772359]
[1758156793541,0.06,245.2,245.19,64.28051648]
[1758156793747,0.06,245.22,245.2,13.87991715]
[1758156794047,0.06,245.22,245.21,1.97204673]
[1758156794249,0.06,245.22,245.21,2.68204673]
[1758156794443,0.06,245.22,245.21,33.20772359]
[1758156795571,0.06,245.22,245.21,37.28586069]
[1758156797037,0.06,245.22,245.21,37.99586069]
[1758156798461,0.06,245.22,245.21,37.28586069]
[1758156800371,0.06,245.22,245.21,61.5781371]
[1758156800372,0.76,245.22,245.21,61.5781371]
[1758156800670,0.06,245.22,245.21,63.26586069]
[1758156800851,0.06,245.22,245.21,77.85577784]
[1758156801251,0.06,245.22,245.21,79.48786467]
[1758156801656,0.06,245.22,245.21,63.26586069]
[1758156801967,0.06,245.22,245.21,64.21164494]
[1758156804101,0.06,245.22,245.21,32.71164494]
[1758156804249,0.06,245.22,245.21,34.13350784]
[1758156804250,0.76,245.22,245.21,34.13350784]
[1758156804567,0.76,245.22,245.21,31.5]
[1758156806065,0.76,245.22,245.17,26.0]
[1758156806258,0.7,245.21,245.18,31.5]
[1758156806560,0.7,245.2,245.18,31.5]
[1758156806766,0.06,245.22,245.18,31.5]
[1758156806969,0.76,245.22,245.2,2.63350784]
[1758156807172,0.76,245.22,245.21,34.13350784]
[1758156807462,0.06,245.22,245.21,34.13350784]
[1758156807666,0.76,245.22,245.21,34.13350784]
[1758156807865,0.76,245.22,245.21,31.5]
[1758156808068,0.06,245.22,245.21,34.13350784]
[1758156808277,0.06,245.22,245.21,31.5]
[1758156808652,0.76,245.22,245.21,31.5]
[1758156808854,0.06,245.22,245.21,34.13350784]
[1758156809049,0.06,245.22,245.21,31.5]
[1758156809473,0.06,245.22,245.21,34.13350784]
[1758156809869,0.76,245.22,245.21,34.13350784]
[1758156810174,0.06,245.22,245.21,34.13350784]
[1758156810770,0.06,245.22,245.21,34.84350784]
[1758156811192,0.06,245.22,245.21,2.63350784]
[1758156811359,0.76,245.22,245.21,34.13350784]
[1758156811758,0.76,245.22,245.21,31.5]
[1758156812464,0.06,245.22,245.21,34.13350784]
[1758156813773,0.72,245.22,245.21,34.13350784]
[1758156814382,0.06,245.22,245.21,34.13350784]
[1758156815261,0.72,245.22,245.21,31.5]
[1758156815661,0.06,245.22,245.21,34.13350784]
[1758156816181,0.06,245.22,245.21,34.85350784]
[1758156817999,0.72,245.22,245.21,57.5]
[1758156818294,0.06,245.22,245.21,60.13350784]
[1758156818503,0.06,245.22,245.21,60.85350784]
[1758156820273,0.06,245.22,245.21,60.13350784]
[1758156822073,0.06,245.22,245.21,57.5]
[1758156822281,0.72,245.22,245.21,60.13350784]
[1758156822463,0.72,245.22,245.21,28.63350784]
[1758156822669,0.72,245.22,245.21,57.5]
[1758156823064,0.72,245.22,245.21,31.5]
[1758156823564,0.72,245.22,245.2,0.03]
[1758156823776,0.72,245.22,245.21,31.5]
[1758156829982,0.06,245.22,245.21,31.5]
[1758156830185,0.06,245.22,245.21,34.13350784]
[1758156832696,0.06,245.22,245.21,31.5]
[1758156832883,0.06,245.22,245.21,34.13350784]
[1758156833485,0.06,245.22,245.21,34.85350784]
[1758156833687,0.06,245.22,245.21,34.13350784]
[1758156833992,0.06,245.22,245.21,32.22]
[1758156834293,0.06,245.22,245.21,34.85350784]
[1758156835296,0.06,245.22,245.21,34.13350784]
[1758156835899,0.06,245.22,245.21,34.85350784]
[1758156837103,0.06,245.22,245.21,34.13350784]
[1758156837280,0.06,245.22,245.21,34.85350784]
[1758156837693,0.06,245.22,245.21,35.13783098]
[1758156837993,0.06,245.22,245.21,3.63783098]
[1758156838587,0.06,245.22,245.21,34.13350784]
[1758156839084,0.77,245.22,245.21,2.63350784]
[1758156839282,0.77,245.22,245.21,34.13350784]
[1758156839591,0.77,245.22,245.21,31.5]
[1758156839773,0.77,245.22,245.2,2.66350784]
[1758156839976,0.77,245.22,245.21,31.5]
[1758156843288,0.77,245.22,245.2,0.03]
[1758156843487,0.06,245.22,245.21,31.5]
[1758156843681,0.06,245.22,245.2,0.03]
[1758156843883,0.06,245.22,245.21,31.5]
[1758156844103,0.73,245.22,245.21,31.5]
[1758156844409,0.73,245.22,245.2,0.03]
[1758156844578,0.73,245.22,245.21,31.5]
[1758156844579,0.06,245.22,245.21,31.5]
[1758156845304,0.73,245.22,245.21,31.5]
[1758156847008,4.80802935,245.22,245.2,0.03]
[1758156847205,2.74633324,245.21,245.2,0.03]
[1758156847416,5.37984108,245.21,245.2,0.03]
[1758156847707,6.04984108,245.21,245.2,0.03]
[1758156851614,3.41633324,245.21,245.2,0.03]
[1758156851906,3.30350784,245.21,245.2,0.03]
[1758156852587,6.04612166,245.21,245.2,0.03]
[1758156853307,19.92603881,245.21,245.2,0.03]
[1758156853499,4.07846975,245.19,245.17,0.03]
[1758156853696,21.88954665,245.18,245.17,0.03]
[1758156853894,22.55954665,245.18,245.17,0.03]
[1758156855490,6.04612166,245.18,245.17,0.03]
[1758156855908,3.30350784,245.18,245.17,0.03]
[1758156856789,26.67,245.18,245.17,0.03]
[1758156856993,6.04612166,245.18,245.17,0.03]
[1758156858315,19.92603881,245.18,245.17,0.03]
[1758156859589,22.55954665,245.18,245.17,0.03]
[1758156859790,26.0,245.13,245.08,0.03]
[1758156859995,2.63350784,245.09,245.08,0.03]
[1758156860816,2.63350784,245.1,245.08,0.03]
[1758156861505,7.38350435,245.1,245.08,0.03]
[1758156861814,2.63350784,245.11,245.08,0.03]
[1758156862322,3.30350784,245.11,245.08,0.03]
[1758156862811,6.71335285,245.11,245.08,0.03]
[1758156863015,28.63350784,245.14,245.09,0.67]
[1758156863322,28.63350784,245.14,245.08,0.03]
[1758156863609,28.63350784,245.14,245.1,0.67]
[1758156863811,27.68782669,245.14,245.1,0.67]
[1758156864318,2.35782669,245.13,245.08,0.03]
[1758156864705,0.67,245.12,245.08,0.03]
[1758156865406,5.7673424,245.13,245.09,0.67]
[1758156865706,10.19549138,245.21,245.09,1.68782669]